fUSD/lending_fUSD_20260526
["ID","MTS","AMOUNT","RATE_DAILY","PERIOD"]
[423041425,1779791434000,-641.52259113,0.00022999,2]
[423041422,1779791434000,-641.52259113,0.00022999,2]
[423041423,1779791434000,-641.52259113,0.00022999,2]
[423041421,1779791434000,-641.52259113,0.00022999,2]
[423041424,1779791434000,-641.52259113,0.00022999,2]
[423041431,1779791434000,-641.52259113,0.00022999,2]
[423041429,1779791434000,-641.52259113,0.00022999,2]
[423041441,1779791434000,-641.52259113,0.00022999,2]
[423041440,1779791434000,-641.52259113,0.00022999,2]
[423041433,1779791434000,-641.52259113,0.00022999,2]
[423041437,1779791434000,-641.52259113,0.00022999,2]
[423041435,1779791434000,-641.52259113,0.00022999,2]
[423041434,1779791434000,-641.52259113,0.00022999,2]
[423041416,1779791434000,-641.52259113,0.00022999,2]
[423041414,1779791434000,-641.52259113,0.00022999,2]
[423041428,1779791434000,-641.52259113,0.00022999,2]
[423041409,1779791434000,-641.52259113,0.00022999,2]
[423041392,1779791434000,-324.0,0.00022,2]
[423041393,1779791434000,-563.0,0.00022,2]
[423041401,1779791434000,-1631.14209288,0.00022562,2]
[423041410,1779791434000,-641.52259113,0.00022999,2]
[423041395,1779791434000,-503.56250299,0.00022353,2]
[423041396,1779791434000,-418.2,0.00022353,2]
[423041397,1779791434000,-2487.56712842,0.00022462,2]
[423041390,1779791434000,-10000.0,0.00022,10]
[423041399,1779791434000,-4770.81,0.00022562,2]
[423041398,1779791434000,-1829.01,0.00022466,2]
[423041394,1779791434000,-308.24,0.000222,2]
[423041402,1779791434000,-150.99,0.00022562,2]
[423041411,1779791434000,-641.52259113,0.00022999,2]
[423041400,1779791434000,-3923.45790712,0.00022562,2]
[423041413,1779791434000,-641.52259113,0.00022999,2]
[423041408,1779791434000,-641.52259113,0.00022999,2]
[423041406,1779791434000,-18086.55,0.00022562,2]
[423041412,1779791434000,-641.52259113,0.00022999,2]
[423041403,1779791434000,-6271.14,0.00022562,2]
[423041404,1779791434000,-2559.86,0.00022562,2]
[423041407,1779791434000,-641.52259113,0.00022999,2]
[423041405,1779791434000,-3661.93,0.00022562,5]
[423041466,1779791437000,-641.55006719,0.00022999,2]
[423041458,1779791437000,-641.52259113,0.00022999,2]
[423041464,1779791437000,-641.52259113,0.00022999,2]
[423041457,1779791437000,-641.52259113,0.00022999,2]
[423041460,1779791437000,-641.52259113,0.00022999,2]
[423041456,1779791437000,-641.52259113,0.00022999,2]
[423041450,1779791437000,-641.52259113,0.00022999,2]
[423041465,1779791437000,-641.52259113,0.00022999,2]
[423041455,1779791437000,-641.52259113,0.00022999,2]
[423041453,1779791437000,-641.52259113,0.00022999,2]
[423041452,1779791437000,-641.52259113,0.00022999,2]
[423041451,1779791437000,-641.52259113,0.00022999,2]
[423041449,1779791437000,-79.16337418,0.00022999,2]
[423041461,1779791437000,-641.52259113,0.00022999,2]
[423041454,1779791437000,-641.52259113,0.00022999,2]
[423041459,1779791437000,-641.52259113,0.00022999,2]
[423041467,1779791437000,-641.55006719,0.00022999,2]
[423041463,1779791437000,-641.52259113,0.00022999,2]
[423041462,1779791437000,-641.52259113,0.00022999,2]
[423041482,1779791437000,-641.55006719,0.00022999,2]
[423041481,1779791437000,-641.55006719,0.00022999,2]
[423041477,1779791437000,-641.55006719,0.00022999,2]
[423041475,1779791437000,-641.55006719,0.00022999,2]
[423041474,1779791437000,-641.55006719,0.00022999,2]
[423041476,1779791437000,-641.55006719,0.00022999,2]
[423041480,1779791437000,-641.55006719,0.00022999,2]
[423041469,1779791437000,-641.55006719,0.00022999,2]
[423041470,1779791437000,-641.55006719,0.00022999,2]
[423041471,1779791437000,-641.55006719,0.00022999,2]
[423041472,1779791437000,-641.55006719,0.00022999,2]
[423041479,1779791437000,-641.55006719,0.00022999,2]
[423041478,1779791437000,-641.55006719,0.00022999,2]
[423041473,1779791437000,-641.55006719,0.00022999,2]
[423041468,1779791437000,-641.55006719,0.00022999,2]
[423041518,1779791438000,-368.9922982,0.000247,2]
[423041521,1779791438000,-500.0,0.00024997,2]
[423041524,1779791438000,-544.07333306,0.00024998,2]
[423041523,1779791438000,-500.0,0.00024998,2]
[423041519,1779791438000,-162.01651039,0.000247,2]
[423041517,1779791438000,-356.59675551,0.000247,2]
[423041514,1779791438000,-1000.0,0.00024658,2]
[423041513,1779791438000,-976.9,0.00024658,2]
[423041516,1779791438000,-152.14,0.00024658,2]
[423041532,1779791438000,-500.0,0.00024998,2]
[423041530,1779791438000,-167.37977558,0.00024998,2]
[423041534,1779791438000,-500.0,0.00024998,2]
[423041540,1779791438000,-500.0,0.00024998,2]
[423041528,1779791438000,-500.0,0.00024998,2]
[423041522,1779791438000,-500.0,0.00024997,2]
[423041520,1779791438000,-200.0,0.00024919,2]
[423041526,1779791438000,-500.0,0.00024998,2]
[423041536,1779791438000,-500.0,0.00024998,2]
[423041538,1779791438000,-500.0,0.00024998,2]
[423041515,1779791438000,-152.19,0.00024658,2]
[423041542,1779791438000,-500.0,0.00024998,2]
[423041546,1779791438000,-220.15908571,0.00024998,2]
[423041548,1779791438000,-500.0,0.00024998,2]
[423041553,1779791438000,-500.0,0.00024998,2]
[423041544,1779791438000,-500.0,0.00024998,2]
[423041525,1779791438000,-500.0,0.00024998,2]
[423041511,1779791438000,-418.2,0.00024324,2]
[423041502,1779791438000,-5000.0,0.0002396,2]
[423041510,1779791438000,-3757.82442006,0.0002421,2]
[423041487,1779791438000,-641.55006719,0.00022999,2]
[423041483,1779791438000,-641.55006719,0.00022999,2]
[423041489,1779791438000,-641.55006719,0.00022999,2]
[423041490,1779791438000,-641.55006719,0.00022999,2]
[423041488,1779791438000,-641.55006719,0.00022999,2]
[423041492,1779791438000,-641.55006719,0.00022999,2]
[423041484,1779791438000,-641.55006719,0.00022999,2]
[423041486,1779791438000,-641.55006719,0.00022999,2]
[423041491,1779791438000,-641.55006719,0.00022999,2]
[423041485,1779791438000,-641.55006719,0.00022999,2]
[423041493,1779791438000,-641.55006719,0.00022999,2]
[423041494,1779791438000,-641.55006719,0.00022999,2]
[423041509,1779791438000,-1626.32,0.00024173,2]
[423041503,1779791438000,-1038.47693357,0.00024,2]
[423041497,1779791438000,-322.0,0.00023,2]
[423041496,1779791438000,-344.4245146,0.00023,20]
[423041501,1779791438000,-150.0,0.00023219,2]
[423041498,1779791438000,-324.0,0.00023,2]
[423041504,1779791438000,-3600.0,0.00024,2]
[423041505,1779791438000,-1255.69318828,0.00024,2]
[423041552,1779791438000,-500.0,0.00024998,2]
[423041499,1779791438000,-563.0,0.00023,2]
[423041500,1779791438000,-246.5002643,0.000232,2]
[423041508,1779791438000,-563.0,0.00024,2]
[423041506,1779791438000,-322.0,0.00024,2]
[423041507,1779791438000,-324.0,0.00024,2]
[423041495,1779791438000,-641.55006719,0.00022999,2]
[423041550,1779791438000,-370.23651881,0.00024998,2]
[423041512,1779791438000,-2487.56712837,0.00024339,2]
[423041557,1779791438000,-500.0,0.00024998,2]
[423041628,1779791438000,-150.0,0.00025249,4]
[423041626,1779791438000,-150.0,0.00025249,4]
[423041624,1779791438000,-150.0,0.00025249,4]
[423041637,1779791438000,-150.0,0.00025249,4]
[423041635,1779791438000,-150.0,0.00025249,4]
[423041639,1779791438000,-773.1517664,0.00025397,2]
[423041633,1779791438000,-150.0,0.00025249,4]
[423041641,1779791438000,-356.59675551,0.000255,2]
[423041643,1779791438000,-368.9922982,0.000255,2]
[423041645,1779791438000,-3758.29810374,0.00025529,2]
[423041649,1779791438000,-195.78497828,0.00025529,2]
[423041652,1779791438000,-1000.0,0.000256,2]
[423041620,1779791438000,-150.0,0.00025249,4]
[423041656,1779791438000,-368.9922982,0.000257,2]
[423041664,1779791438000,-507.0,0.00026118,3]
[423041666,1779791438000,-2487.56712837,0.00026216,2]
[423041670,1779791438000,-773.1517664,0.00026397,2]
[423041668,1779791438000,-418.2,0.00026296,2]
[423041662,1779791438000,-157.74,0.0002576,2]
[423041660,1779791438000,-152.14,0.00025743,7]
[423041672,1779791438000,-20779.24,0.000264,2]
[423041674,1779791438000,-168.9,0.0002657,2]
[423041676,1779791438000,-168.9,0.0002657,2]
[423041678,1779791438000,-168.9,0.0002657,2]
[423041681,1779791438000,-168.9,0.0002657,2]
[423041555,1779791438000,-500.0,0.00024998,2]
[423041654,1779791438000,-356.59675551,0.000257,2]
[423041630,1779791438000,-150.67938172,0.00025249,4]
[423041658,1779791438000,-152.19,0.00025743,7]
[423041622,1779791438000,-150.0,0.00025249,4]
[423041561,1779791438000,-500.0,0.00024998,2]
[423041618,1779791438000,-162.01651039,0.000252,2]
[423041559,1779791438000,-500.0,0.00024998,2]
[423041565,1779791438000,-270.64638475,0.00024998,2]
[423041563,1779791438000,-500.0,0.00024998,2]
[423041567,1779791438000,-500.0,0.00024998,2]
[423041573,1779791438000,-502.06934061,0.00024998,2]
[423041569,1779791438000,-500.0,0.00024998,2]
[423041581,1779791438000,-500.0,0.00024998,2]
[423041586,1779791438000,-500.0,0.00024998,2]
[423041583,1779791438000,-500.0,0.00024998,2]
[423041579,1779791438000,-569.98056701,0.00024998,2]
[423041577,1779791438000,-500.0,0.00024998,2]
[423041575,1779791438000,-500.0,0.00024998,2]
[423041571,1779791438000,-500.0,0.00024998,2]
[423041585,1779791438000,-500.0,0.00024998,2]
[423041616,1779791438000,-368.9922982,0.000252,2]
[423041607,1779791438000,-507.0,0.00025082,2]
[423041605,1779791438000,-566.0,0.00025,2]
[423041601,1779791438000,-327.0,0.00025,2]
[423041603,1779791438000,-163.58,0.00025,2]
[423041595,1779791438000,-162.01651039,0.00025,2]
[423041613,1779791438000,-356.59675551,0.000252,2]
[423041599,1779791438000,-326.0,0.00025,2]
[423041597,1779791438000,-20779.24,0.00025,2]
[423041591,1779791438000,-356.59675551,0.00025,2]
[423041588,1779791438000,-500.0,0.00024998,2]
[423041593,1779791438000,-368.9922982,0.00025,2]
[423041761,1779791439000,-515.43451094,0.00027397,7]
[423041758,1779791439000,-18322.17,0.00027397,10]
[423041759,1779791439000,-15268.47,0.00027397,10]
[423041754,1779791439000,-300.0,0.00027397,2]
[423041756,1779791439000,-976.9,0.00027397,2]
[423041755,1779791439000,-527.65,0.00027397,2]
[423041752,1779791439000,-1500.0,0.00027397,2]
[423041750,1779791439000,-600.49083608,0.00027397,2]
[423041751,1779791439000,-150.0,0.00027397,2]
[423041745,1779791439000,-500.0,0.00027397,2]
[423041743,1779791439000,-270.35510848,0.00027397,2]
[423041747,1779791439000,-500.0,0.00027397,2]
[423041753,1779791439000,-1003.42,0.00027397,2]
[423041757,1779791439000,-1020.23,0.00027397,2]
[423041766,1779791439000,-563.95,0.00027633,30]
[423041774,1779791439000,-169.1,0.00027796,10]
[423041773,1779791439000,-169.1,0.00027796,10]
[423041762,1779791439000,-204.35775946,0.000275,2]
[423041763,1779791439000,-997.0,0.000275,7]
[423041770,1779791439000,-1179.5,0.00027784,7]
[423041771,1779791439000,-169.1,0.00027796,10]
[423041769,1779791439000,-563.95,0.00027784,7]
[423041767,1779791439000,-1179.5,0.00027633,30]
[423041768,1779791439000,-1217.66,0.00027652,30]
[423041765,1779791439000,-150.0,0.00027521,2]
[423041764,1779791439000,-1626.32,0.00027504,2]
[423041772,1779791439000,-169.1,0.00027796,10]
[423041748,1779791439000,-500.0,0.00027397,2]
[423041760,1779791439000,-12723.73,0.00027397,10]
[423041749,1779791439000,-500.0,0.00027397,2]
[423041687,1779791439000,-150.0,0.00026652,4]
[423041735,1779791439000,-500.0,0.00027397,2]
[423041775,1779791439000,-169.1,0.00027796,10]
[423041689,1779791439000,-997.0,0.000267,7]
[423041691,1779791439000,-152.19,0.00026829,30]
[423041695,1779791439000,-150.0,0.00026849,2]
[423041693,1779791439000,-152.14,0.00026829,30]
[423041697,1779791439000,-250.0,0.00027,2]
[423041685,1779791439000,-5832.99,0.00026591,2]
[423041682,1779791439000,-1875.54,0.00026591,2]
[423041701,1779791439000,-1050.92947117,0.00027,2]
[423041699,1779791439000,-800.69612137,0.00027,2]
[423041704,1779791439000,-530.0,0.00027,2]
[423041715,1779791439000,-163.4,0.00027297,2]
[423041707,1779791439000,-507.0,0.00027155,4]
[423041705,1779791439000,-500.0,0.00027068,2]
[423041718,1779791439000,-163.4,0.00027297,2]
[423041711,1779791439000,-418.0,0.00027258,2]
[423041720,1779791439000,-163.4,0.00027299,2]
[423041713,1779791439000,-15252.10243621,0.00027297,2]
[423041722,1779791439000,-163.4,0.00027299,2]
[423041709,1779791439000,-3636.0,0.00027258,2]
[423041724,1779791439000,-163.37,0.00027301,2]
[423041726,1779791439000,-163.4,0.00027301,2]
[423041728,1779791439000,-406.85699481,0.0002736,2]
[423041730,1779791439000,-515.43451094,0.00027397,7]
[423041732,1779791439000,-500.0,0.00027397,2]
[423041739,1779791439000,-500.0,0.00027397,2]
[423041746,1779791439000,-500.0,0.00027397,2]
[423041737,1779791439000,-500.0,0.00027397,2]
[423041741,1779791439000,-500.0,0.00027397,2]
[423041744,1779791439000,-500.0,0.00027397,2]
[423041777,1779791439000,-169.1,0.00027796,10]
[423041822,1779791439000,-500.0,0.00028069,2]
[423041778,1779791439000,-169.1,0.00027796,10]
[423041806,1779791439000,-163.58,0.0002806,2]
[423041809,1779791439000,-163.58,0.0002806,2]
[423041810,1779791439000,-163.58,0.0002806,2]
[423041817,1779791439000,-426.69349542,0.00028069,2]
[423041819,1779791439000,-500.0,0.00028069,2]
[423041818,1779791439000,-500.0,0.00028069,2]
[423041827,1779791439000,-500.0,0.00028069,2]
[423041821,1779791439000,-500.0,0.00028069,2]
[423041780,1779791439000,-169.04,0.000278,2]
[423041824,1779791439000,-500.0,0.00028069,2]
[423041820,1779791439000,-500.0,0.00028069,2]
[423041828,1779791439000,-575.45588428,0.00028069,2]
[423041816,1779791439000,-500.0,0.00028069,2]
[423041812,1779791439000,-231.49918463,0.00028069,15]
[423041826,1779791439000,-500.0,0.00028069,2]
[423041823,1779791439000,-500.0,0.00028069,2]
[423041829,1779791439000,-500.0,0.00028069,2]
[423041830,1779791439000,-500.0,0.00028069,2]
[423041832,1779791439000,-500.0,0.00028069,2]
[423041831,1779791439000,-500.0,0.00028069,2]
[423041836,1779791439000,-500.0,0.00028069,2]
[423041835,1779791439000,-500.0,0.00028069,2]
[423041841,1779791439000,-500.0,0.00028069,2]
[423041834,1779791439000,-500.0,0.00028069,2]
[423041838,1779791439000,-505.93015865,0.00028069,2]
[423041833,1779791439000,-500.0,0.00028069,2]
[423041840,1779791439000,-500.0,0.00028069,2]
[423041837,1779791439000,-500.0,0.00028069,2]
[423041839,1779791439000,-388.16011402,0.00028069,2]
[423041805,1779791439000,-163.58,0.0002806,2]
[423041825,1779791439000,-500.0,0.00028069,2]
[423041815,1779791439000,-303.90756291,0.00028069,2]
[423041779,1779791439000,-436.0,0.00027796,10]
[423041786,1779791439000,-563.95,0.00027936,2]
[423041781,1779791439000,-1217.66,0.00027801,7]
[423041808,1779791439000,-163.58,0.0002806,2]
[423041776,1779791439000,-169.1,0.00027796,10]
[423041787,1779791439000,-1179.5,0.00027936,2]
[423041784,1779791439000,-152.14,0.00027914,2]
[423041782,1779791439000,-169.1,0.00027803,2]
[423041783,1779791439000,-20779.24,0.000279,2]
[423041789,1779791439000,-169.04,0.00027965,7]
[423041790,1779791439000,-169.1,0.00027966,7]
[423041801,1779791439000,-150.0,0.00028055,7]
[423041788,1779791439000,-1217.66,0.00027951,2]
[423041799,1779791439000,-150.85511542,0.00028055,7]
[423041785,1779791439000,-152.19,0.00027914,2]
[423041800,1779791439000,-150.0,0.00028055,7]
[423041791,1779791439000,-545.18749701,0.00027982,2]
[423041811,1779791439000,-545.67659199,0.0002806,2]
[423041807,1779791439000,-163.58,0.0002806,2]
[423041813,1779791439000,-500.0,0.00028069,10]
[423041802,1779791439000,-150.0,0.00028055,7]
[423041803,1779791439000,-163.58,0.0002806,2]
[423041814,1779791439000,-205.25819266,0.00028069,10]
[423041796,1779791439000,-169.0,0.00028055,2]
[423041793,1779791439000,-4582.146345,0.00028,60]
[423041792,1779791439000,-763.58854782,0.00027982,2]
[423041795,1779791439000,-318.0,0.00028,2]
[423041797,1779791439000,-150.0,0.00028055,7]
[423041798,1779791439000,-150.0,0.00028055,7]
[423041794,1779791439000,-160.0,0.00028,2]
[423041846,1779791440000,-500.0,0.00028069,7]
[423041842,1779791440000,-284.76596029,0.00028069,2]
[423041844,1779791440000,-500.0,0.00028069,7]
[423041843,1779791440000,-500.0,0.00028069,7]
[423041845,1779791440000,-500.0,0.00028069,7]
[423041849,1779791440000,-2302198.92049128,0.0002807,2]
[423041847,1779791440000,-500.0,0.00028069,7]
[423041848,1779791440000,-200.0,0.0002807,2]
[423041850,1779791440000,-1213.0,0.00028,10]
[423041854,1779791440000,-500.0,0.00028069,7]
[423041856,1779791440000,-6232.86240235,0.0002807,2]
[423041858,1779791440000,-1391.93868977,0.0002807,2]
[423041851,1779791440000,-500.0,0.00028069,7]
[423041852,1779791440000,-500.0,0.00028069,7]
[423041855,1779791440000,-500.0,0.00028069,7]
[423041853,1779791440000,-500.0,0.00028069,7]
[423041859,1779791440000,-69082.91747912,0.0002807,2]
[423041860,1779791440000,-1344.16402264,0.0002807,2]
[423041861,1779791440000,-19317.99980509,0.0002807,2]
[423041857,1779791440000,-387.53193384,0.0002807,2]
[423041888,1779791443000,-1539.24406109,0.0002807,2]
[423041887,1779791443000,-169.46,0.00027963,7]
[423041884,1779791443000,-152.52,0.00024658,2]
[423041886,1779791443000,-169.46,0.00027797,2]
[423041885,1779791443000,-152.52,0.00025743,7]
[423041905,1779791446000,-4066.4259084,0.0002806,10]
[423041904,1779791446000,-6186.12426578,0.0002806,10]
[423041903,1779791446000,-1500.0,0.00027397,2]
[423041923,1779791449000,-1217.66,0.00028101,30]
[423041921,1779791449000,-157.76,0.000281,7]
[423041937,1779791449000,-563.95,0.00028392,2]
[423041936,1779791449000,-418.2,0.00028267,2]
[423041938,1779791449000,-1179.5,0.00028392,2]
[423041934,1779791449000,-1217.66,0.00028251,7]
[423041932,1779791449000,-1179.5,0.0002824,7]
[423041922,1779791449000,-176.48,0.000281,7]
[423041917,1779791449000,-563.95,0.00028088,30]
[423041918,1779791449000,-1179.5,0.00028088,30]
[423041919,1779791449000,-2487.56712837,0.00028094,2]
[423041924,1779791449000,-169.05,0.0002813,30]
[423041913,1779791449000,-150.60404999,0.0002807,2]
[423041914,1779791449000,-867.0,0.0002807,10]
[423041920,1779791449000,-851.21,0.000281,14]
[423041915,1779791449000,-931.0,0.00028075,2]
[423041912,1779791449000,-200.0,0.0002807,2]
[423041911,1779791449000,-200.0,0.0002807,2]
[423041909,1779791449000,-296.82102635,0.0002807,2]
[423041907,1779791449000,-2760.76674848,0.0002807,2]
[423041906,1779791449000,-350.55982582,0.0002806,10]
[423041908,1779791449000,-572.82576703,0.0002807,2]
[423041910,1779791449000,-94874.00757296,0.0002807,2]
[423041926,1779791449000,-169.48,0.0002813,30]
[423041916,1779791449000,-2500.0,0.00028082,120]
[423041928,1779791449000,-507.0,0.00028191,5]
[423041959,1779791449000,-170.07957496,0.00028971,2]
[423041958,1779791449000,-272.1777648,0.000289,2]
[423041960,1779791449000,-163.58,0.0002899,2]
[423041957,1779791449000,-150.0,0.00028897,2]
[423041956,1779791449000,-150.0,0.00028855,2]
[423041955,1779791449000,-150.0,0.00028855,2]
[423041962,1779791449000,-315.54861354,0.00029,2]
[423041954,1779791449000,-1217.66,0.0002885,2]
[423041952,1779791449000,-50.65446553,0.00028848,2]
[423041953,1779791449000,-1128.84553447,0.00028848,2]
[423041961,1779791449000,-500.0,0.00028999,7]
[423041930,1779791449000,-563.95,0.0002824,7]
[423041945,1779791449000,-1179.5,0.00028544,30]
[423041947,1779791449000,-15252.10243616,0.00028587,2]
[423041949,1779791449000,-1179.5,0.00028696,7]
[423041944,1779791449000,-563.95,0.00028544,30]
[423041950,1779791449000,-1217.66,0.000287,7]
[423041943,1779791449000,-1908.7011418,0.00028525,2]
[423041951,1779791449000,-563.95,0.00028848,2]
[423041948,1779791449000,-563.95,0.00028696,7]
[423041942,1779791449000,-150.0,0.000285,2]
[423041941,1779791449000,-173.21907853,0.00028432,2]
[423041940,1779791449000,-161.20647228,0.00028423,2]
[423041939,1779791449000,-1217.66,0.000284,2]
[423041946,1779791449000,-1217.66,0.0002855,30]
[423041971,1779791521000,500.0,0.00028069,120]
[423041969,1779791521000,500.0,0.00028069,120]
[423041970,1779791521000,500.0,0.00028069,120]
[423041973,1779791522000,500.0,0.00028069,120]
[423041974,1779791522000,500.0,0.00028069,120]
[423041972,1779791522000,500.0,0.00028069,120]
[423041975,1779791523000,500.0,0.00028069,120]
[423041977,1779791523000,500.0,0.00028069,120]
[423041978,1779791523000,512.88515102,0.00028069,120]
[423041976,1779791523000,500.0,0.00028069,120]
[423041983,1779791708000,513.37631331,0.00028069,120]
[423041986,1779791722000,604.32063976,0.00028069,120]
[423041985,1779791722000,500.0,0.00028069,120]
[423041984,1779791722000,500.0,0.00028069,120]
[423041992,1779791812000,500.0,0.00028069,120]
[423041991,1779791812000,500.0,0.00028069,120]
[423041995,1779791813000,500.0,0.00028069,120]
[423041994,1779791813000,500.0,0.00028069,120]
[423041993,1779791813000,500.0,0.00028069,120]
[423041999,1779791814000,500.0,0.00028069,120]
[423041998,1779791814000,500.0,0.00028069,120]
[423041997,1779791814000,500.0,0.00028069,120]
[423041996,1779791814000,500.0,0.00028069,120]
[423042000,1779791815000,500.0,0.00028069,120]
[423042005,1779791876000,500.0,0.00028069,120]
[423042007,1779791876000,500.0,0.00028069,120]
[423042006,1779791876000,500.0,0.00028069,120]
[423042008,1779791877000,500.0,0.00028069,120]
[423042010,1779791877000,500.0,0.00028069,120]
[423042009,1779791877000,500.0,0.00028069,120]
[423042012,1779791893000,500.0,0.00028069,120]
[423042015,1779791894000,500.0,0.00028069,120]
[423042014,1779791894000,500.0,0.00028069,120]
[423042013,1779791894000,500.0,0.00028069,120]
[423042018,1779791895000,507.87506377,0.00028069,120]
[423042017,1779791895000,500.0,0.00028069,120]
[423042016,1779791895000,500.0,0.00028069,120]
[423042020,1779791914000,500.0,0.00028069,120]
[423042021,1779791914000,500.0,0.00028069,120]
[423042022,1779791914000,214.92437032,0.00028069,120]
[423042025,1779791933000,500.0,0.00028069,120]
[423042024,1779791933000,500.0,0.00028069,120]
[423042028,1779791934000,504.33479177,0.00028069,120]
[423042027,1779791934000,500.0,0.00028069,120]
[423042026,1779791934000,500.0,0.00028069,120]
[423042035,1779791969000,500.0,0.00028069,120]
[423042034,1779791969000,500.0,0.00028069,120]
[423042036,1779791970000,500.0,0.00028069,120]
[423042037,1779791970000,500.0,0.00028069,120]
[423042038,1779791970000,500.0,0.00028069,120]
[423042041,1779791971000,309.0637561,0.00028069,120]
[423042040,1779791971000,500.0,0.00028069,120]
[423042039,1779791971000,500.0,0.00028069,120]
[423042048,1779792110000,500.0,0.00028069,120]
[423042047,1779792110000,500.0,0.00028069,120]
[423042046,1779792110000,500.0,0.00028069,120]
[423042052,1779792111000,500.0,0.00028069,120]
[423042051,1779792111000,500.0,0.00028069,120]
[423042050,1779792111000,500.0,0.00028069,120]
[423042049,1779792111000,500.0,0.00028069,120]
[423042053,1779792112000,500.0,0.00028069,120]
[423042055,1779792112000,500.0,0.00028069,120]
[423042054,1779792112000,500.0,0.00028069,120]
[423042056,1779792113000,500.0,0.00028069,120]
[423042060,1779792138000,500.0,0.00028069,120]
[423042059,1779792138000,500.0,0.00028069,120]
[423042063,1779792139000,500.0,0.00028069,120]
[423042062,1779792139000,500.0,0.00028069,120]
[423042061,1779792139000,500.0,0.00028069,120]
[423042064,1779792140000,500.0,0.00028069,120]
[423042066,1779792140000,500.0,0.00028069,120]
[423042065,1779792140000,500.0,0.00028069,120]
[423042067,1779792140000,500.0,0.00028069,120]
[423042069,1779792141000,500.0,0.00028069,120]
[423042068,1779792141000,500.0,0.00028069,120]
[423042072,1779792205000,500.0,0.00028069,120]
[423042075,1779792206000,500.0,0.00028069,120]
[423042074,1779792206000,500.0,0.00028069,120]
[423042073,1779792206000,500.0,0.00028069,120]
[423042076,1779792207000,509.90076802,0.00028069,120]
[423042080,1779792290000,256.58,0.0002543,120]
[423042081,1779792290000,256.58,0.00027973,120]
[423042083,1779792309000,500.0,0.00028069,120]
[423042082,1779792309000,500.0,0.00028069,120]
[423042086,1779792310000,500.0,0.00028069,120]
[423042085,1779792310000,500.0,0.00028069,120]
[423042084,1779792310000,500.0,0.00028069,120]
[423042088,1779792311000,500.0,0.00028069,120]
[423042087,1779792311000,500.0,0.00028069,120]
[423042090,1779792312000,500.0,0.00028069,120]
[423042089,1779792312000,500.0,0.00028069,120]
[423042091,1779792313000,500.0,0.00028069,120]
[423042092,1779792313000,500.0,0.00028069,120]
[423042093,1779792315000,1663.01,0.00027784,120]
[423042097,1779792352000,523.33781445,0.00028069,120]
[423042103,1779792411000,384.76598019,0.00028069,120]
[423042102,1779792411000,500.0,0.00028069,120]
[423042105,1779792424000,500.0,0.00027814,120]
[423042150,1779792631000,-582.0185,0.000179,2]
[423042149,1779792631000,-168.89,0.00017816,2]
[423042148,1779792631000,-166.41,0.00017295,2]
[423042145,1779792631000,-135.19484225,0.00016438,2]
[423042147,1779792631000,-922.726888,0.00017208,2]
[423042146,1779792631000,-288.40515775,0.00016438,2]